Cogmind - Beta 10.2 @@@ ROGUE MODE // 2021.01.26 @ 21:37:23 Player: W_W Result: Destroyed by P-70 Sage with High-powered Shock Rifle Performance ------------- Evolutions (6) 3000 Regions Visited (23) 4600 Robots Destroyed (320) 1600 Value Destroyed (11362) 11362 Prototype IDs (51) 1020 Alien Tech Used (0) 0 Bonus (5572) 5572 TOTAL SCORE: 27154 Bonus ------- High Alert Combat Kills 679 Follower Combat Kills 2434 Entered Garrisons 600 Used RIF Installer 1000 Aligned with FarCom 300 Met Data Miner 300 Built Enhanced Grunts 300 Met R17 at Cetus 500 Friendly Fire -541 Cogmind --------- Core Integrity 0/1150 Matter 257/550 Energy 80/100 System Corruption 13% Temperature Cool (0) Movement Treading (180) Ox1 Location -4/Factory Parts ------- > --- POWER (2) -------- (None) > --- PROPULSION (4) --- Improved Treads Improved Treads > --- UTILITY (8) ------ High-capacity Storage Unit Matter Compressor Improved Medium Armor Plating Improved Medium Armor Plating Layered Light Armor Plating > --- WEAPON (5) ------- KE Penetrator Ripper > --- INVENTORY (12) --- Advanced Hacking Suite Mini Drone Bay (3/3) Peak State ------------ > --- POWER ------------ Light Angular Momentum Engine Quantum Reactor > --- PROPULSION ------- Centrium Heavy Treads Centrium Heavy Treads > --- UTILITY ---------- Advanced Heat Sink Advanced Heat Sink High-capacity Storage Unit High-capacity Storage Unit Centrium Medium Armor Plating Damper Plating > --- WEAPON ----------- Wave Gun Disruptor Cannon Improved KE Penetrator Magnetic Acceleration Cannon Bore Cannon > --- INVENTORY -------- Antimatter Reactor Centrium Heavy Treads Centrium Heavy Treads Improved Energy Well Matter Compressor Layered Heavy Armor Plating Advanced Hacking Suite System Backup Module Recalibrator Mini Drone Bay Wave Gun Advanced Variable Charge Gun Advanced Variable Charge Gun Plasma Cannon Neutron Cannon Heavy Flak Cannon Ripper [Rating: 131] Favorites ----------- Power Improved Ion Engine Engine Improved Ion Engine Power Core Light Nuclear Core Reactor Quantum Reactor Propulsion Advanced Treads Treads Advanced Treads Leg Carbon-fiber Leg Hover Unit Gravmag System Utility High-capacity Storage Unit Device Advanced Heat Sink Storage High-capacity Storage Unit Processor Targeting Computer Protection Improved Medium Armor Plating Weapon Gauss Rifle Energy Gun Improved EM Shotgun Energy Cannon Heavy Ion Cannon Ballistic Gun Gauss Rifle Ballistic Cannon Gauss Cannon Launcher Heavy Missile Launcher Special Weapon Field Lobotomy Kit Impact Weapon Heavy Mace Slashing Weapon Makeshift Axe Build | -11 -10 -9 -9 -9 -8 -8 -8 -8 -8 -7 -7 -7 -7 -6 -6 -6 -6 -6 -6 -5 -4 -4 -4 ------- Run | Scr Mat Mat Min Exi Min Mat Gar Mat Gar Fac Low Low Dat Pro Fac Gar Fac Ext Cet Fac Fac Was Fac Slots Evolved 12 | . . 2 . . . 2 . . . 2 . . . . 2 . . . . 2 2 . . Power 1 | . . . . . . . . . . . . . . . . . . . . . 1 . . Propulsion 2 | . . . . . . . . . . 1 . . . . 1 . . . . . . . . Utility 6 | . . . . . . 2 . . . 1 . . . . 1 . . . . 2 . . . Weapon 3 | . . 2 . . . . . . . . . . . . . . . . . . 1 . . Parts Attached 322 | 7 6 18 . . 3 28 6 3 3 8 13 35 . 17 15 9 20 48 28 8 3 6 38 Power 22 | 1 . 1 . . 1 1 . 1 . 1 . 1 . 1 1 1 2 3 4 . 1 . 2 Engine 18 | 1 . 1 . . 1 1 . 1 . 1 . . . 1 1 1 2 3 3 . 1 . . Core 1 | . . . . . . . . . . . . 1 . . . . . . . . . . . Reactor 3 | . . . . . . . . . . . . . . . . . . . 1 . . . 2 Propulsion 65 | 2 . 6 . . . 7 . . . 2 3 11 . 4 3 . 3 15 5 . . . 4 Treads 44 | 2 . 6 . . . 7 . . . 2 3 10 . 2 2 . 1 . 5 . . . 4 Leg 20 | . . . . . . . . . . . . . . 2 1 . 2 15 . . . . . Wheel . | . . . . . . . . . . . . . . . . . . . . . . . . Hover 1 | . . . . . . . . . . . . 1 . . . . . . . . . . . Flight . | . . . . . . . . . . . . . . . . . . . . . . . . Utility 114 | 2 4 . . . . 5 1 . . 1 4 11 . 3 10 1 9 19 11 7 1 2 23 Device 33 | . . . . . . 1 . . . . . . . . 5 . 1 10 5 6 . . 5 Storage 15 | 2 4 . . . . . . . . . . 4 . 1 3 . . . . . . . 1 Processor 1 | . . . . . . . . . . . . . . . . . . . 1 . . . . Hackware . | . . . . . . . . . . . . . . . . . . . . . . . . Protection 65 | . . . . . . 4 1 . . 1 4 7 . 2 2 1 8 9 5 1 1 2 17 Artifact . | . . . . . . . . . . . . . . . . . . . . . . . . Weapon 121 | 2 2 11 . . 2 15 5 2 3 4 6 12 . 9 1 7 6 11 8 1 1 4 9 Energy Gun 22 | 1 1 1 . . 1 3 . . . . . 1 . . . . 2 6 2 1 . 2 1 Energy Cannon 10 | . . . . . . . . . . . . . . 2 . . 1 . 1 . 1 2 3 Ballistic Gun 42 | 1 1 9 . . . 8 . 2 1 1 3 3 . 3 . 3 2 3 1 . . . 1 Ballistic Cannon 27 | . . 1 . . . 2 3 . 1 3 1 6 . 1 1 1 1 1 4 . . . 1 Launcher 12 | . . . . . 1 . 2 . 1 . 1 1 . 2 . 3 . 1 . . . . . Special Weapon 3 | . . . . . . 2 . . . . 1 . . . . . . . . . . . . Impact Weapon 1 | . . . . . . . . . . . . . . . . . . . . . . . 1 Slashing Weapon 4 | . . . . . . . . . . . . 1 . 1 . . . . . . . . 2 Piercing Weapon . | . . . . . . . . . . . . . . . . . . . . . . . . Special Melee Weapon . | . . . . . . . . . . . . . . . . . . . . . . . . Unidentified Prototypes 16 | . . 2 . . . 2 . 2 . 1 . . . 2 . . 2 . 4 . . . 1 Parts Lost 76 | . . 3 . . . 5 . 1 . . 3 8 . 9 . 6 3 2 6 . . 3 27 Power 8 | . . . . . . 1 . 1 . . . . . 1 . . . . 1 . . . 4 Propulsion 14 | . . . . . . . . . . . . 4 . 3 . 1 . . 2 . . . 4 Utility 20 | . . . . . . . . . . . 2 1 . 1 . 1 1 1 3 . . . 10 Weapon 34 | . . 3 . . . 4 . . . . 1 3 . 4 . 4 2 1 . . . 3 9 Highest Loss Streak 24 | . . 2 . . . 2 . 1 . . 1 4 . 5 . 5 2 1 4 . . 3 24 Average Slot Usage (%) 95 | . 100 98 100 100 100 99 100 99 100 100 99 97 92 84 82 84 83 97 87 83 84 82 71 Engine 7 | . 14 11 11 11 11 8 9 8 9 7 7 5 . . 5 6 6 6 5 . 2 5 3 Treads 17 | . 28 22 22 22 22 18 18 18 18 23 23 21 23 15 10 11 9 . 11 11 10 10 9 Leg 2 | . . . . . . . . . . . . . . . . . 2 24 2 . . . . Device 4 | . . . . . . 6 9 9 9 7 7 3 . . 11 7 6 6 6 14 13 10 9 Storage 16 | . 28 22 22 22 22 18 18 18 18 15 15 14 7 7 12 13 13 13 13 11 10 10 10 Protection 12 | . . . . . . 11 9 9 9 15 14 18 23 22 13 18 18 19 19 15 17 14 11 Energy Gun 4 | . 14 6 11 11 10 8 9 5 . . . 2 . . . . . 6 4 5 5 6 5 Ballistic Gun 18 | . 14 26 22 22 22 21 18 21 27 23 27 15 15 13 6 20 15 9 5 5 5 2 . Ballistic Cannon 7 | . . 9 11 11 11 5 8 9 8 7 2 11 15 13 6 1 4 9 14 11 10 7 3 Naked Turns . | . . . . . . . . . . . . . . . . . . . . . . . . Heaviest Build 184 | 15 71 84 84 84 86 98 98 95 97 108 112 182 126 129 113 116 117 114 130 138 156 184 182 Greatest Support 160 | 40 40 40 40 40 40 44 44 44 44 66 66 76 68 70 50 50 58 83 160 160 160 160 160 Greatest Overweight (x) 19 | 1 1 4 2 2 2 2 2 2 2 1 1 5 1 6 5 3 3 2 2 . . 1 19 Average Overweight (x) 1 | . . 1 2 2 2 2 2 1 2 1 1 1 1 1 2 2 1 1 . . . . . Largest Inventory Capacity 40 | 8 20 20 20 20 20 20 20 20 20 20 20 40 24 24 40 20 20 20 20 20 20 20 20 Average Capacity 20 | 6 15 20 20 20 20 20 20 20 20 20 20 20 24 24 20 20 20 20 20 20 20 20 19 Most Carried 27 | 7 15 20 20 20 20 20 20 20 20 20 20 27 21 24 23 20 20 20 20 20 20 20 20 Average Carried 19 | 3 11 19 20 19 19 19 20 20 19 19 19 19 21 23 20 17 19 19 19 19 19 19 16 Final Capacity 24 | 8 20 20 20 20 20 20 20 20 20 20 20 24 24 24 20 20 20 20 20 20 20 20 12 Final Carried 22 | 6 15 20 20 20 20 20 20 20 20 20 19 21 21 22 20 18 20 20 20 20 20 19 2 Class Distribution -------------------- 26% | Hauler-Skirmisher 24% | Hauler-Tank 17% | Scavenger-Tank 9% | Hauler-Mutant 9% | Hauler-Gunner 5% | Derelict-Tank Dominant Class ---------------- Hauler-Mutant | -10/Materials Hauler-Gunner | -9/Materials Hauler-Gunner | -9/Mines Hauler-Gunner | -9/Exiles Hauler-Skirmisher | -8/Mines Hauler-Skirmisher | -8/Materials Hauler-Skirmisher | -8/Garrison Hauler-Skirmisher | -8/Materials Hauler-Skirmisher | -8/Garrison Hauler-Tank | -7/Factory Hauler-Tank | -7/Lower Caves Hauler-Tank | -7/Lower Caves Derelict-Tank | -7/Data Miner Derelict-Tank | -6/Proximity Caves Hauler-Mutant | -6/Factory Hauler-Mutant | -6/Garrison Hauler-Tank | -6/Factory Scavenger-Tank | -6/Extension Scavenger-Tank | -6/Cetus Scavenger-Tank | -5/Factory Scavenger-Tank | -4/Factory Scavenger-Tank | -4/Waste Scavenger-Mutant | -4/Factory Resources | -11 -10 -9 -9 -9 -8 -8 -8 -8 -8 -7 -7 -7 -7 -6 -6 -6 -6 -6 -6 -5 -4 -4 -4 ----------- Run | Scr Mat Mat Min Exi Min Mat Gar Mat Gar Fac Low Low Dat Pro Fac Gar Fac Ext Cet Fac Fac Was Fac Matter Collected 13155 | 309 528 742 91 . 187 1177 200 444 226 367 805 1181 . 843 437 407 625 1734 1664 . 55 457 676 Remotely . | . . . . . . . . . . . . . . . . . . . . . . . . Salvage Created 12417 | 201 546 1227 282 . 257 2135 110 583 180 493 785 605 . 588 335 474 523 1418 872 11 . . 792 Parts 610 | 24 36 78 17 . 16 102 12 30 18 27 31 27 . 26 12 17 21 48 41 1 . . 26 Haulers Intercepted 12 | . 2 2 . . . 3 . 3 . 1 . . . . . . . 1 . . . . . Recyclers Shooed 6 | 1 . 3 . . . . . . . . . . . . . . 2 . . . . . . Parts Field Recycled . | . . . . . . . . . . . . . . . . . . . . . . . . Retrieved Matter . | . . . . . . . . . . . . . . . . . . . . . . . . Parts Self-Destructed 93 | . . . . . . . . . . . 36 22 . 35 . . . . . . . . . Prevented . | . . . . . . . . . . . . . . . . . . . . . . . . Kills | -11 -10 -9 -9 -9 -8 -8 -8 -8 -8 -7 -7 -7 -7 -6 -6 -6 -6 -6 -6 -5 -4 -4 -4 ------- Run | Scr Mat Mat Min Exi Min Mat Gar Mat Gar Fac Low Low Dat Pro Fac Gar Fac Ext Cet Fac Fac Was Fac Combat Hostiles Destroyed 234 | . 8 21 4 . 9 28 8 6 11 7 19 20 . 22 1 15 4 14 22 . . . 15 Melee 4 | . . . . . . . . . . . . 1 . 1 . . . . . . . . 2 Guns 123 | . 7 17 4 . 5 25 1 2 3 5 14 10 . 4 1 4 . 9 11 . . . 1 Cannons 58 | . . 2 . . 2 1 1 1 1 2 4 3 . 9 . 3 4 3 11 . . . 11 AOE 49 | . 1 2 . . 2 2 6 3 7 . 1 6 . 8 . 8 . 2 . . . . 1 Classes Destroyed 15 | 3 5 3 . . . 2 . . . 1 1 . . . . . . . . . . . . Worker 19 | 2 . 2 1 . . 3 . 1 . 2 . . . . 5 . 1 . . 1 . . 1 Builder 7 | . 1 . 1 . . . . . . 1 . . . . . . 2 1 . . . . 1 Tunneler 9 | 5 1 . 1 . . . . 1 . . . . . . . . . 1 . . . . . Hauler 12 | . 2 2 . . . 3 . 3 . 1 . . . . . . . 1 . . . . . Recycler 22 | 1 1 2 2 . 1 5 . 1 . 1 . . . . 1 . 3 4 . . . . . Operator 2 | . . 1 . . . 1 . . . . . . . . . . . . . . . . . Watcher 14 | . 2 3 . . . 5 . 1 . 1 . . . . . . . . 2 . . . . Swarmer 65 | . 2 3 4 . 7 2 6 . 8 . 4 6 . 11 . 4 . . 8 . . . . Grunt 109 | . 6 12 . . 2 16 1 3 1 4 11 9 . 7 . 10 . 10 8 . . . 9 Brawler 8 | . . 1 . . . . . . . . 2 . . 1 . . . 1 1 . . . 2 Duelist 7 | . . . . . . 1 . . . . 1 2 . . . . . 1 1 . . . 1 Sentry 23 | . . 5 . . . 7 1 3 2 . . . . 2 . . 1 1 . . . . 1 Hunter 6 | . . . . . . 2 . . . . . . . . . . 1 . 1 . . . 2 Programmer 9 | . . . . . . . . . . 3 . 2 . . 1 1 2 . . . . . . Behemoth 4 | . . . . . . . . . . . 1 1 . 1 . . . 1 . . . . . Cetus Guard 3 | . . . . . . . . . . . . . . . . . . . 3 . . . . Enhanced Grunt 1 | . . . . . . . . . . . . . . 1 . . . . . . . . . Best Kill Streak 8 | 6 4 4 4 . 4 3 3 4 8 3 5 6 . 5 4 8 2 4 8 1 . . 4 Combat Bots Only 8 | . 2 2 4 . 4 3 3 2 8 3 5 6 . 5 1 8 1 4 8 . . . 4 Max Kills in Single Turn 4 | 1 1 2 2 . 1 2 2 2 3 3 2 3 . 4 1 3 1 2 1 1 . . 1 Gunslinging 1 | . . . . . . . . . . . 1 . . . . . . . . . . . . Exploded 4 | . 1 1 . . 1 1 2 2 3 . 1 3 . 4 . 3 . 1 . . . . 1 Melee 1 | . . . . . . . . . . . . 1 . 1 . . . . . . . . 1 Uniques/NPCs Destroyed . | . . . . . . . . . . . . . . . . . . . . . . . . Combat | -11 -10 -9 -9 -9 -8 -8 -8 -8 -8 -7 -7 -7 -7 -6 -6 -6 -6 -6 -6 -5 -4 -4 -4 -------- Run | Scr Mat Mat Min Exi Min Mat Gar Mat Gar Fac Low Low Dat Pro Fac Gar Fac Ext Cet Fac Fac Was Fac Damage Taken 22035 | . 366 748 62 . 251 1226 85 166 184 309 1391 2282 . 1785 11 1080 1238 1227 2898 . 45 375 6306 Core 2872 | . 62 71 32 . 13 83 . 37 22 18 74 284 . 199 . 72 413 200 127 . 22 . 1143 Absorbed by Shields 667 | . . . . . . . . . . . . . . . 3 86 . 567 11 . . . . Reduced by Siege Mode 467 | . . . . . . . . . . . . . . . . . . . 41 . . 21 405 Core Remaining (%) 63 | 100 75 . . . 71 . . . 74 . . . . 17 . . . . 4 100 . . . Volleys Fired 748 | 13 41 63 5 . 20 102 21 22 15 21 45 52 . 49 10 34 29 61 65 6 1 16 57 Largest 5 | 2 2 4 4 . 4 4 4 4 4 4 4 4 . 4 3 4 4 4 4 4 4 5 5 Hottest 431 | 60 60 130 130 . 130 145 145 145 122 129 131 174 . 156 143 191 183 250 259 225 226 384 431 Shots Fired 2287 | 26 82 227 19 . 63 301 54 80 43 83 163 181 . 125 22 76 97 233 204 15 4 62 127 Gun 1463 | 26 82 188 14 . 41 251 33 58 33 62 151 117 . 49 6 31 60 141 74 4 2 22 18 Cannon 771 | . . 39 5 . 17 47 12 22 6 21 9 60 . 62 16 35 37 91 130 11 2 40 109 Launcher 48 | . . . . . 5 . 9 . 4 . 1 4 . 14 . 10 . 1 . . . . . Special 5 | . . . . . . 3 . . . . 2 . . . . . . . . . . . . Kinetic 1779 | 13 41 194 15 . 51 235 34 67 39 83 160 164 . 97 12 60 82 174 178 13 3 27 37 Thermal 228 | . . . . . . . . . . . . 13 . 14 10 6 15 26 26 2 1 25 90 Explosive 48 | . . . . . 5 . 9 . 4 . 1 4 . 14 . 10 . 1 . . . . . Electromagnetic 227 | 13 41 33 4 . 7 63 11 13 . . . . . . . . . 32 . . . 10 . Robot Hit Streak 26 | 6 5 15 7 . 18 24 8 9 19 7 10 10 . 10 4 5 9 7 7 2 2 24 26 Robot Miss Streak 14 | 2 4 4 2 . 3 4 2 5 1 4 4 5 . 5 3 4 6 14 7 1 2 2 4 Penetration Max 1 | . . . . . . . . 1 . . 1 1 . . . . . . 1 1 . . . Secondary Targets 10 | . 1 1 . . . 1 . . 1 . 6 . . . . . . . . . . . . Max Gunslinging Chain 1 | . 1 1 . . . 1 . . 1 . 1 . . . . . . . . . . . . Shots Hit Robots 1363 | 18 45 134 5 . 34 200 22 43 26 57 113 102 . 60 12 35 46 126 126 3 2 53 101 Core Hits 640 | 8 22 51 9 . 18 84 14 22 16 26 49 37 . 48 8 24 18 72 72 1 1 4 36 Critical Hits 50 | . . . . . . 3 1 1 . 3 5 4 . 1 . . . 2 24 1 . 3 2 Critical Kills 15 | . . . . . . 2 . . . . . . . 1 . . . 1 11 . . . . Critical Parts Destroyed 30 | . . . . . . 1 1 1 . 3 4 3 . . . . . 1 12 1 . 1 2 Melee Attacks 43 | . . . . . . . . . . . . . . 3 20 . . . . . . . 20 Impact 3 | . . . . . . . . . . . . . . . . . . . . . . . 3 Slashing 40 | . . . . . . . . . . . . . . 3 20 . . . . . . . 17 Piercing . | . . . . . . . . . . . . . . . . . . . . . . . . Sneak Attacks 2 | . . . . . . . . . . . . . . . 2 . . . . . . . . Combat Hostiles . | . . . . . . . . . . . . . . . . . . . . . . . . Follow-up Attacks . | . . . . . . . . . . . . . . . . . . . . . . . . Damage Inflicted 34828 | 245 987 1987 137 . 766 3007 1011 1122 860 1486 2559 2850 . 2980 570 1741 1223 3515 2911 112 60 1398 3301 Guns 16719 | 245 582 1528 113 . 446 2507 288 660 385 793 2071 1432 . 495 100 348 683 1860 1274 71 30 538 270 Cannons 10215 | . . 194 . . 156 272 93 98 82 261 205 724 . 888 243 353 501 1276 1637 41 30 762 2399 Explosions 6683 | . 383 150 . . 88 193 630 207 393 371 283 687 . 1572 . 1040 . 359 . . . 98 229 Melee 655 | . . . . . . . . . . . . . . 25 227 . . . . . . . 403 Ramming 556 | . 22 115 24 . 76 35 . 157 . 61 . 7 . . . . 39 20 . . . . . Kinetic 19574 | 122 215 1332 49 . 442 1818 267 504 467 1054 2276 1972 . 1030 149 614 922 2392 2392 41 60 667 789 Thermal 6278 | . 383 150 . . . 193 . 207 . 267 . 184 . 353 194 87 262 578 519 71 . 721 2109 Explosive 4949 | . . . . . 88 . 630 . 393 104 283 687 . 1572 . 1040 . 152 . . . . . Electromagnetic 2816 | 123 367 390 64 . 160 961 114 254 . . . . . . . . . 373 . . . 10 . Impact 32 | . . . . . . . . . . . . . . . . . . . . . . . 32 Slashing 623 | . . . . . . . . . . . . . . 25 227 . . . . . . . 371 Piercing . | . . . . . . . . . . . . . . . . . . . . . . . . Highest Corruption 13 | . . 2 2 2 2 . . . . 1 3 5 5 8 1 2 3 3 3 . . 12 13 Average Corruption 3 | . . 2 2 2 2 . . . . 1 1 4 5 5 1 1 2 3 3 . . 10 11 Corruption Purged 1 | . . . . . . . . . . . . . . . . . . . . . . . 1 Effects 346 | . . 11 3 4 16 . . . . 6 17 77 3 60 2 9 14 44 17 . . 19 44 Message Errors 89 | . . 2 2 2 7 . . . . 4 7 20 1 13 . 3 5 12 3 . . 2 6 Matter Fused 52 | . . . . . . . . . . . 2 13 . 18 . . . 10 2 . . 2 5 Heat Flow Errors 47 | . . 3 . 1 2 . . . . . 2 12 1 5 . 1 1 10 1 . . 1 7 Energy Discharges 33 | . . 3 . . 3 . . . . . 5 6 1 3 2 2 2 2 3 . . . 1 Data Loss (minor) 48 | . . . . 1 4 . . . . 2 1 12 . 7 . 2 4 6 4 . . 3 2 Data Loss (major) 7 | . . . . . . . . . . . . 3 . 3 . . . . . . . . 1 Misfires 11 | . . . . . . . . . . . . 3 . 5 . . . . . . . . 3 Alerts 1 | . . . . . . . . . . . . . . . . . . . . . . . 1 Misdirections 2 | . . . . . . . . . . . . . . . . . . . . . . . 2 Targeting Errors 49 | . . 2 1 . . . . . . . . 7 . 5 . 1 2 3 4 . . 9 15 Weapon Failures 7 | . . 1 . . . . . . . . . 1 . 1 . . . 1 . . . 2 1 Overload Shots . | . . . . . . . . . . . . . . . . . . . . . . . . Overflow Damage 842 | . 165 . . . 16 19 66 12 . 95 . 82 . 116 54 17 30 48 . . . 18 104 Projectiles 277 | . . . . . 16 19 . . . 10 . 56 . 1 1 . 30 36 . . . 18 90 Explosions 498 | . 165 . . . . . 66 12 . 85 . 26 . 115 . 17 . 12 . . . . . Melee 67 | . . . . . . . . . . . . . . . 53 . . . . . . . 14 Knockbacks 42 | . 1 2 . . 1 4 . 2 . 4 . 11 . 2 . 2 1 7 1 1 . . 3 Impact 4 | . 1 1 . . . . . 1 . 1 . . . . . . . . . . . . . Kinetic 37 | . . 1 . . 1 4 . 1 . 3 . 11 . 2 . 2 1 6 1 1 . . 3 Secondary 1 | . . . . . . . . . . . . . . . . . . 1 . . . . . Self-Inflicted Damage 520 | . . 111 . . . 22 . . . 27 . 105 . . . 111 1 5 . . . 83 55 Shots 12 | . . 3 . . . 1 . . . 1 . 3 . . . 2 . . . . . 1 1 Rammed 47 | . 3 7 1 . 5 5 . 14 . 3 . 1 . . . . 5 3 . . . . . Targets Rammed 53 | . 4 7 2 . 5 5 . 15 . 3 . 1 . . . . 6 5 . . . . . Kicked 3 | . . . . . . . . . . . . . . . . . 1 2 . . . . . Crushed 3 | . 1 . 1 . . . . 1 . . . . . . . . . . . . . . . Highest Temperature 1409 | . 84 179 126 212 357 471 54 54 47 75 253 590 142 489 48 328 553 513 501 33 42 750 1409 Average Temperature 175 | . 38 59 69 106 99 99 21 19 22 19 32 209 75 170 24 162 178 136 161 22 28 260 542 Received Heat Transfer 3984 | . 192 246 . . 54 441 18 54 63 90 291 597 . 228 . 378 12 296 535 . 9 . 480 Effects 210 | . . . . . . 9 . . . . . 39 . 10 . 1 8 5 7 . . 13 118 Shutdowns 30 | . . . . . . 1 . . . . . 7 . 1 . . . . 1 . . 6 14 Energy Bleed 24 | . . . . . . 1 . . . . . 6 . 1 . 1 . . 1 . . . 14 Interference 53 | . . . . . . 6 . . . . . 12 . 6 . . . 4 3 . . . 22 Matter Decay 18 | . . . . . . 1 . . . . . 1 . 1 . . . . 1 . . 2 12 Short Circuit 14 | . . . . . . . . . . . . 4 . . . . . . . . . 1 9 Damage (minor) 19 | . . . . . . . . . . . . 5 . 1 . . 1 . 1 . . 4 7 Damage (major) 41 | . . . . . . . . . . . . 2 . . . . 5 . . . . . 34 Damage (core) 11 | . . . . . . . . . . . . 2 . . . . 2 1 . . . . 6 Siege Activations 7 | . . . . . . . . . . . . . . . . . . . 1 . . 3 3 Total Turns 318 | . . . . . . . . . . . . . . . . . . . 48 . . 34 236 Longest Duration 121 | . . . . . . . . . . . . . . . . . . . 48 . . 20 121 Robots Corrupted . | . . . . . . . . . . . . . . . . . . . . . . . . Combat Hostiles . | . . . . . . . . . . . . . . . . . . . . . . . . Parts Fried 8 | . 1 . 1 . . . . 1 . . . . . . . . . 5 . . . . . Impact Corruptions . | . . . . . . . . . . . . . . . . . . . . . . . . Robots Melted . | . . . . . . . . . . . . . . . . . . . . . . . . Combat Hostiles . | . . . . . . . . . . . . . . . . . . . . . . . . Parts Melted 5 | . . . . . . . . . . 1 . . . . . . 1 . . . . . 3 Heat Transferred 7190 | . 250 150 . . . 250 . 150 . 150 . 407 . 481 259 111 370 828 777 74 . 879 2054 Parts Sabotaged . | . . . . . . . . . . . . . . . . . . . . . . . . Parts Stolen . | . . . . . . . . . . . . . . . . . . . . . . . . Parts Stripped . | . . . . . . . . . . . . . . . . . . . . . . . . Power Chain Reactions 13 | . 1 5 . . . 3 . 3 . . . . . . . . . . . . . 1 . Missiles Intercepted . | . . . . . . . . . . . . . . . . . . . . . . . . Alert | -11 -10 -9 -9 -9 -8 -8 -8 -8 -8 -7 -7 -7 -7 -6 -6 -6 -6 -6 -6 -5 -4 -4 -4 ------- Run | Scr Mat Mat Min Exi Min Mat Gar Mat Gar Fac Low Low Dat Pro Fac Gar Fac Ext Cet Fac Fac Was Fac Peak Influence 1125 | 40 219 284 183 . 144 472 792 611 834 447 . . . . 200 394 231 894 1125 646 385 142 446 Initial 630 | . 26 15 68 . . 55 297 386 298 437 . . . . 164 . 206 . 498 630 310 134 44 Average 281 | 21 78 154 141 . 22 201 594 451 739 291 . . . . 103 222 96 459 655 631 358 108 247 Maximum Alert Level 4 | . 1 1 . . . 2 3 2 3 2 . . . . 1 1 1 3 4 2 1 . 2 Low Security (%) 47 | 100 91 81 100 . 100 56 . . . 21 . . . . 84 20 70 27 . . . 100 22 Level 1 23 | . 8 18 . . . 37 13 25 4 56 . . . . 15 79 29 6 . . 100 . 71 Level 2 21 | . . . . . . 5 50 74 13 21 . . . . . . . 47 84 100 . . 5 Level 3 7 | . . . . . . . 36 . 82 . . . . . . . . 18 11 . . . . Level 4 . | . . . . . . . . . . . . . . . . . . . 4 . . . . Level 5 . | . . . . . . . . . . . . . . . . . . . . . . . . High Security . | . . . . . . . . . . . . . . . . . . . . . . . . Max Security . | . . . . . . . . . . . . . . . . . . . . . . . . Squads Dispatched 37 | . . 4 . . . 12 . 4 . 4 . . . . . . 2 5 . 1 . . 5 Investigation 3 | . . . . . . 1 . 2 . . . . . . . . . . . . . . . Extermination 5 | . . . . . . . . . . 3 . . . . . . 1 . . . . . 1 Reinforcement 16 | . . 4 . . . 7 . 1 . 1 . . . . . . . 2 . . . . 1 Assault 4 | . . . . . . . . . . . . . . . . . . 3 . 1 . . . Garrison 9 | . . . . . . 4 . 1 . . . . . . . . 1 . . . . . 3 Intercept . | . . . . . . . . . . . . . . . . . . . . . . . . Construction Impeded 2 | . . . . . . . . 1 . . . . . . . . . 1 . . . . . Haulers Reinforced 1 | . . . . . . . . . . 1 . . . . . . . . . . . . . Stealth | -11 -10 -9 -9 -9 -8 -8 -8 -8 -8 -7 -7 -7 -7 -6 -6 -6 -6 -6 -6 -5 -4 -4 -4 --------- Run | Scr Mat Mat Min Exi Min Mat Gar Mat Gar Fac Low Low Dat Pro Fac Gar Fac Ext Cet Fac Fac Was Fac Distress Signals 13 | . 2 3 . . . 2 . 4 . . . . . . . . 1 1 . . . . . Communications Jammed . | . . . . . . . . . . . . . . . . . . . . . . . . Distress Signals . | . . . . . . . . . . . . . . . . . . . . . . . . Times Spotted 435 | . 21 44 4 . 10 55 9 22 12 8 35 43 . 33 1 15 6 54 36 . 1 6 20 Peak Tracking Total 9 | . 4 4 4 . 4 5 4 4 3 2 9 7 . 7 1 5 1 5 4 1 1 3 4 Tactical Retreats 56 | . 5 2 . . 3 2 . 1 1 1 11 17 . 7 . 2 . . 4 . . . . Traps | -11 -10 -9 -9 -9 -8 -8 -8 -8 -8 -7 -7 -7 -7 -6 -6 -6 -6 -6 -6 -5 -4 -4 -4 ------- Run | Scr Mat Mat Min Exi Min Mat Gar Mat Gar Fac Low Low Dat Pro Fac Gar Fac Ext Cet Fac Fac Was Fac Traps Triggered 27 | . . 2 . . . 2 6 . 3 2 . . . . 1 6 3 1 . . 1 . . Indirectly . | . . . . . . . . . . . . . . . . . . . . . . . . Trap Hack Attempts . | . . . . . . . . . . . . . . . . . . . . . . . . Triggered . | . . . . . . . . . . . . . . . . . . . . . . . . Disarmed . | . . . . . . . . . . . . . . . . . . . . . . . . Reprogrammed . | . . . . . . . . . . . . . . . . . . . . . . . . Reused . | . . . . . . . . . . . . . . . . . . . . . . . . Traps Extracted . | . . . . . . . . . . . . . . . . . . . . . . . . Installed . | . . . . . . . . . . . . . . . . . . . . . . . . Triggered 1 | . . . . . . . . . . . 1 . . . . . . . . . . . . Machines | -11 -10 -9 -9 -9 -8 -8 -8 -8 -8 -7 -7 -7 -7 -6 -6 -6 -6 -6 -6 -5 -4 -4 -4 ---------- Run | Scr Mat Mat Min Exi Min Mat Gar Mat Gar Fac Low Low Dat Pro Fac Gar Fac Ext Cet Fac Fac Was Fac Machines Disabled 51 | . 4 1 . . 1 2 1 . 2 7 2 1 . 5 2 3 . 10 3 . . . 7 Max in Single Turn 5 | . 1 1 . . 1 1 1 . 1 5 1 1 . 3 1 1 . 1 1 . . . 3 Garrison Relay 2 | . . . . . . . 1 . 1 . . . . . . . . . . . . . . Energy Cycler 1 | . . . . . . . . . . . . . . . . . . 1 . . . . . Machines Sabotaged . | . . . . . . . . . . . . . . . . . . . . . . . . Garrisons Compromised . | . . . . . . . . . . . . . . . . . . . . . . . . Overloaded Fab Kills . | . . . . . . . . . . . . . . . . . . . . . . . . Fab Network Shutdowns . | . . . . . . . . . . . . . . . . . . . . . . . . Hacking | -11 -10 -9 -9 -9 -8 -8 -8 -8 -8 -7 -7 -7 -7 -6 -6 -6 -6 -6 -6 -5 -4 -4 -4 --------- Run | Scr Mat Mat Min Exi Min Mat Gar Mat Gar Fac Low Low Dat Pro Fac Gar Fac Ext Cet Fac Fac Was Fac Machines Accessed 38 | . 3 . . 1 . 4 . 2 . 1 . 2 4 . 4 . 2 10 3 . . . 2 Terminals 26 | . 3 . . . . 1 . 1 . 1 . 1 . . 3 . 1 10 3 . . . 2 Fabricators 1 | . . . . . . . . . . . . . . . . . 1 . . . . . . Repair Stations . | . . . . . . . . . . . . . . . . . . . . . . . . Recycling Units 2 | . . . . . . 2 . . . . . . . . . . . . . . . . . Scanalyzers . | . . . . . . . . . . . . . . . . . . . . . . . . Garrison Access 3 | . . . . . . 1 . 1 . . . . . . 1 . . . . . . . . Total Hacks 102 | . 7 . . 1 . 10 . 11 . 1 . 4 28 . 6 . 3 23 4 . . . 4 Successful 63 | . 5 . . 1 . 5 . 8 . . . 4 28 . 2 . . 6 1 . . . 3 Failed 39 | . 2 . . . . 5 . 3 . 1 . . . . 4 . 3 17 3 . . . 1 Catastrophic 12 | . . . . . . . . 1 . 1 . . . . 2 . 2 3 2 . . . 1 Database Lockouts . | . . . . . . . . . . . . . . . . . . . . . . . . Manual 32 | . 7 . . 1 . 4 . 6 . . . . . . 4 . . 8 1 . . . 1 Terminals 56 | . 7 . . . . 2 . 7 . 1 . 3 . . 4 . 1 23 4 . . . 4 Fabricators 2 | . . . . . . . . . . . . . . . . . 2 . . . . . . Repair Stations . | . . . . . . . . . . . . . . . . . . . . . . . . Recycling Units 5 | . . . . . . 5 . . . . . . . . . . . . . . . . . Scanalyzers . | . . . . . . . . . . . . . . . . . . . . . . . . Garrison Access 9 | . . . . . . 3 . 4 . . . . . . 2 . . . . . . . . Terminal Hacks 46 | . . . . 1 . . . 5 . . . 4 28 . 1 . . 4 1 . . . 2 Record 17 | . . . . . . . . . . . . 3 11 . 1 . . . 1 . . . 1 Part Schematic 6 | . . . . . . . . . . . . . 6 . . . . . . . . . . Robot Schematic 8 | . . . . . . . . . . . . . 8 . . . . . . . . . . Robot Analysis 1 | . . . . . . . . . . . . . . . . . . 1 . . . . . Prototype ID Bank 4 | . . . . . . . . 1 . . . . 3 . . . . . . . . . . Open Door 2 | . . . . . . . . . . . . 1 . . . . . 1 . . . . . Emergency Access Points 2 | . . . . . . . . 1 . . . . . . . . . . . . . . 1 Locate Traps 1 | . . . . . . . . . . . . . . . . . . 1 . . . . . Dispatch Records 1 | . . . . . . . . 1 . . . . . . . . . . . . . . . Recall Extermination 1 | . . . . . . . . . . . . . . . . . . 1 . . . . . Hauler Manifests 1 | . . . . . . . . 1 . . . . . . . . . . . . . . . Zone Layout 1 | . . . . . . . . 1 . . . . . . . . . . . . . . . EX-Prototype ID Bank 1 | . . . . 1 . . . . . . . . . . . . . . . . . . . Fabricator Hacks . | . . . . . . . . . . . . . . . . . . . . . . . . Repair Station Hacks . | . . . . . . . . . . . . . . . . . . . . . . . . Recycling Unit Hacks 2 | . . . . . . 2 . . . . . . . . . . . . . . . . . Retrieve Components 2 | . . . . . . 2 . . . . . . . . . . . . . . . . . Scanalyzer . | . . . . . . . . . . . . . . . . . . . . . . . . Garrison Access Hacks 3 | . . . . . . 1 . 1 . . . . . . 1 . . . . . . . . Unlock Access 3 | . . . . . . 1 . 1 . . . . . . 1 . . . . . . . . Unauthorized Hacks 12 | . 5 . . . . 2 . 2 . . . . . . . . . 2 . . . . 1 Terminals 8 | . 5 . . . . . . . . . . . . . . . . 2 . . . . 1 Assimilate 1 | . 1 . . . . . . . . . . . . . . . . . . . . . . Botnet 6 | . 3 . . . . . . . . . . . . . . . . 2 . . . . 1 Detonate 1 | . 1 . . . . . . . . . . . . . . . . . . . . . . Fabricators . | . . . . . . . . . . . . . . . . . . . . . . . . Repair Stations . | . . . . . . . . . . . . . . . . . . . . . . . . Recycling Units . | . . . . . . . . . . . . . . . . . . . . . . . . Scanalyzers . | . . . . . . . . . . . . . . . . . . . . . . . . Garrison Access 4 | . . . . . . 2 . 2 . . . . . . . . . . . . . . . Reprogram 3 | . . . . . . 1 . 2 . . . . . . . . . . . . . . . Watchers 1 | . . . . . . 1 . . . . . . . . . . . . . . . . . Data Cores Recovered . | . . . . . . . . . . . . . . . . . . . . . . . . Used . | . . . . . . . . . . . . . . . . . . . . . . . . Hacking Detections 31 | . 3 . . . . 3 . 2 . 1 . 1 . . 4 . 2 10 3 . . . 2 Full Trace Events 1 | . . . . . . . . 1 . . . . . . . . . . . . . . . Feedback Events . | . . . . . . . . . . . . . . . . . . . . . . . . Feedback Blocked . | . . . . . . . . . . . . . . . . . . . . . . . . Robot Schematics Acquired 8 | . . . . . . . . . . . . . 8 . . . . . . . . . . Robots Built . | . . . . . . . . . . . . . . . . . . . . . . . . Matter . | . . . . . . . . . . . . . . . . . . . . . . . . Time . | . . . . . . . . . . . . . . . . . . . . . . . . Total Robot Build Rating . | . . . . . . . . . . . . . . . . . . . . . . . . Part Schematics Acquired 6 | . . . . . . . . . . . . . 6 . . . . . . . . . . Parts Built . | . . . . . . . . . . . . . . . . . . . . . . . . Matter . | . . . . . . . . . . . . . . . . . . . . . . . . Time . | . . . . . . . . . . . . . . . . . . . . . . . . Total Part Build Rating . | . . . . . . . . . . . . . . . . . . . . . . . . Parts Repaired . | . . . . . . . . . . . . . . . . . . . . . . . . Time . | . . . . . . . . . . . . . . . . . . . . . . . . Parts Recycled . | . . . . . . . . . . . . . . . . . . . . . . . . Recycled Matter . | . . . . . . . . . . . . . . . . . . . . . . . . Retrieved Matter . | . . . . . . . . . . . . . . . . . . . . . . . . Retrieved Components 11 | . . . . . . 11 . . . . . . . . . . . . . . . . . Parts Scanalyzed . | . . . . . . . . . . . . . . . . . . . . . . . . Part Schematics Acquired . | . . . . . . . . . . . . . . . . . . . . . . . . Parts Damaged . | . . . . . . . . . . . . . . . . . . . . . . . . Bothacking | -11 -10 -9 -9 -9 -8 -8 -8 -8 -8 -7 -7 -7 -7 -6 -6 -6 -6 -6 -6 -5 -4 -4 -4 ------------ Run | Scr Mat Mat Min Exi Min Mat Gar Mat Gar Fac Low Low Dat Pro Fac Gar Fac Ext Cet Fac Fac Was Fac Used RIF Installer 2 | . . . . . . . 1 . 1 . . . . . . . . . . . . . . Signal Jammer 1 | . . . . . . . . . 1 . . . . . . . . . . . . . . Robots Hacked . | . . . . . . . . . . . . . . . . . . . . . . . . Non-combat . | . . . . . . . . . . . . . . . . . . . . . . . . Combat . | . . . . . . . . . . . . . . . . . . . . . . . . Robot Hacks Applied . | . . . . . . . . . . . . . . . . . . . . . . . . Relay Couplers Released 6 | . . . . . . . 3 . 3 . . . . . . . . . . . . . . Machine Destruction 6 | . . . . . . . 3 . 3 . . . . . . . . . . . . . . Robots Rewired 10 | . . . . . . . . . . . 2 . . . . . . 8 . . . . . Allies Hacked . | . . . . . . . . . . . . . . . . . . . . . . . . Hacks Repelled . | . . . . . . . . . . . . . . . . . . . . . . . . Allies | -11 -10 -9 -9 -9 -8 -8 -8 -8 -8 -7 -7 -7 -7 -6 -6 -6 -6 -6 -6 -5 -4 -4 -4 -------- Run | Scr Mat Mat Min Exi Min Mat Gar Mat Gar Fac Low Low Dat Pro Fac Gar Fac Ext Cet Fac Fac Was Fac Total Allies 28 | . . . . . . 5 . 4 . . 4 . . 1 . . . 9 5 . . . . Largest Group 6 | . . . . . . 3 2 5 5 2 2 . . 1 . . . 6 5 5 5 5 2 Highest-Rated Group 470 | . . . . . . 61 32 79 79 32 49 . . 94 . . . 304 470 470 470 470 163 Highest-Rated Ally 156 | . . . . . . 29 16 16 16 16 49 . . 94 . . . 156 149 94 94 94 94 Total Orders 10 | . . . . . . 1 . . . . . . . . . . . 2 . 7 . . . STAY 2 | . . . . . . 1 . . . . . . . . . . . 1 . . . . . FOLLOW 2 | . . . . . . . . . . . . . . . . . . 1 . 1 . . . EXPLORE 2 | . . . . . . . . . . . . . . . . . . . . 2 . . . RETURN 4 | . . . . . . . . . . . . . . . . . . . . 4 . . . Ally Attacks 450 | . . . . . . 27 15 57 24 8 6 . . 13 . . . 159 61 . 3 71 6 Total Damage 11300 | . . . . . . 374 168 655 288 94 97 . . 445 . . . 4139 1853 . 140 2860 187 Kills 80 | . . . . . . 3 4 7 7 1 2 . . 5 . . . 33 10 . 1 6 1 Allies Corrupted 1 | . . . . . . . . . . . . . . . . . . 1 . . . . . Allies Melted . | . . . . . . . . . . . . . . . . . . . . . . . . Field Lobotomies 5 | . . . . . . 3 . . . . 2 . . . . . . . . . . . . Intel | -11 -10 -9 -9 -9 -8 -8 -8 -8 -8 -7 -7 -7 -7 -6 -6 -6 -6 -6 -6 -5 -4 -4 -4 ------- Run | Scr Mat Mat Min Exi Min Mat Gar Mat Gar Fac Low Low Dat Pro Fac Gar Fac Ext Cet Fac Fac Was Fac Robot Analysis Total 1 | . . . . . . . . . . . . . . . . . . 1 . . . . . Derelict Logs Recovered 4 | . . . 1 . . . . . . . 1 1 . 1 . . . . . . . . . Drone Launches 5 | . . . . . . . . . . . . . . . . . . . . 5 . . . Drone Recoveries 3 | . . . . . . . . . . . . . . . . . . . . 3 . . . Exploration | -11 -10 -9 -9 -9 -8 -8 -8 -8 -8 -7 -7 -7 -7 -6 -6 -6 -6 -6 -6 -5 -4 -4 -4 ------------- Run | Scr Mat Mat Min Exi Min Mat Gar Mat Gar Fac Low Low Dat Pro Fac Gar Fac Ext Cet Fac Fac Was Fac Turns Passed 33090 | 186 1407 2227 272 583 2393 4007 672 2029 1075 1851 2768 2887 160 2297 801 905 1343 2666 1169 345 87 268 692 Spaces Moved 15437 | 84 687 990 126 291 1036 1594 299 916 552 1042 1506 1424 87 1037 314 378 599 1441 534 152 46 108 194 Core 7 | 6 . . . . . . . . . . . . . . . . . . . . . . 1 Treads 13724 | 78 687 990 126 291 1036 1594 299 916 552 1042 1506 1424 87 1003 258 378 472 . 486 152 46 108 193 Legs 1706 | . . . . . . . . . . . . . . 34 56 . 127 1441 48 . . . . Wheels . | . . . . . . . . . . . . . . . . . . . . . . . . Hover . | . . . . . . . . . . . . . . . . . . . . . . . . Flight . | . . . . . . . . . . . . . . . . . . . . . . . . Fastest Speed 50 | 50 160 180 200 200 200 185 185 165 185 165 165 173 186 178 205 205 180 150 150 160 160 160 160 Average Speed 183 | 155 170 193 200 200 200 197 185 184 185 165 171 184 186 203 212 207 195 153 160 160 160 168 173 Slowest Speed 1000 | 160 180 240 200 200 200 200 185 185 185 165 173 260 186 290 270 220 220 180 180 160 160 180 1000 Overloaded Moves . | . . . . . . . . . . . . . . . . . . . . . . . . Propulsion Burnouts . | . . . . . . . . . . . . . . . . . . . . . . . . Robots Hopped . | . . . . . . . . . . . . . . . . . . . . . . . . Cave-ins Triggered . | . . . . . . . . . . . . . . . . . . . . . . . . Exploration Rate (%) 57 | 4 98 74 30 70 96 88 51 56 71 24 99 99 70 98 9 63 16 95 78 4 2 78 6 Regions Visited 23 Branch Regions 9 Pre-discovered Areas 2 | . . . . . . . . . . . . 1 1 . . . . . . . . . . Known Exits Taken 6 | . . . . . . 1 . 1 . 1 . . . . 1 . 1 . 1 . . . . Unknown Exits Taken 12 | 1 1 1 1 1 1 . . . . . 1 1 1 1 . . . 1 . 1 . . . Scrap Searched 19 | . . . . . 1 . . . . . 3 14 . 1 . . . . . . . . . Spaces Dug 82 | . . . . . 22 . 3 . . . . . . 1 . 52 . . . 4 . . . Terrain Destroyed 663 | . 39 27 1 . 35 24 91 20 16 38 16 56 . 57 1 92 4 28 30 8 . 10 70 Melee . | . . . . . . . . . . . . . . . . . . . . . . . . Projectile 158 | . . 3 1 . 1 13 4 4 . 7 7 22 . 15 1 3 4 18 30 8 . 1 16 AOE 505 | . 39 24 . . 34 11 87 16 16 31 9 34 . 42 . 89 . 10 . . . 9 54 Terrain Rammed . | . . . . . . . . . . . . . . . . . . . . . . . . Walls Destroyed . | . . . . . . . . . . . . . . . . . . . . . . . . Machines Disabled . | . . . . . . . . . . . . . . . . . . . . . . . . Actions | -11 -10 -9 -9 -9 -8 -8 -8 -8 -8 -7 -7 -7 -7 -6 -6 -6 -6 -6 -6 -5 -4 -4 -4 --------- Run | Scr Mat Mat Min Exi Min Mat Gar Mat Gar Fac Low Low Dat Pro Fac Gar Fac Ext Cet Fac Fac Was Fac Total 18758 | 111 842 1153 132 293 1311 2267 381 1187 585 1137 1605 1579 86 1138 417 442 717 1776 712 246 59 159 423 Wait 1569 | . 74 42 . 1 243 467 41 226 7 38 24 14 . 17 41 7 25 80 40 68 6 23 85 Move 15412 | 83 686 989 125 290 1035 1593 297 915 550 1041 1505 1423 86 1036 313 376 598 1440 533 151 46 107 194 Hop . | . . . . . . . . . . . . . . . . . . . . . . . . Pick Up 186 | 7 17 16 . 1 2 30 2 1 2 9 2 22 . 10 4 3 12 14 16 3 2 3 8 Fast Attach 93 | 7 . 7 . . . 4 1 3 . 1 3 6 . 1 7 . 12 12 8 6 . 2 13 Attach 86 | . . 2 . . . 6 . . . 2 3 15 . 8 5 5 3 1 7 2 3 4 20 Detach 24 | . . . . . . . . . . . . 7 . 2 2 . 3 . 3 2 1 . 4 Swap 146 | . 6 9 . . 3 19 5 1 3 5 7 14 . 8 3 4 6 35 13 . . . 5 Drop 284 | 1 14 18 . 1 3 41 4 4 3 13 6 25 . 4 12 1 23 55 27 8 . 4 17 Fire 748 | 13 41 63 5 . 20 102 21 22 15 21 45 52 . 49 10 34 29 61 65 6 1 16 57 Melee 43 | . . . . . . . . . . . . . . 3 20 . . . . . . . 20 Ram . | . . . . . . . . . . . . . . . . . . . . . . . . Kick 8 | . . . . . . . . . . . . . . . . . 3 5 . . . . . Crush 45 | . 4 7 2 . 5 5 . 15 . 3 . 1 . . . . 3 . . . . . . Escape Stasis 38 | . . . . . . . 10 . 4 4 . . . . . 12 . 8 . . . . . Rewire 76 | . . . . . . . . . 1 . 10 . . . . . . 65 . . . . . Trap . | . . . . . . . . . . . . . . . . . . . . . . . . Miscellaneous . | . . . . . . . . . . . . . . . . . . . . . . . . Route ------- -11/Scrapyard -10/Materials (discovered 4 exits: *Mat x3 / [*Min]) -9/Materials (discovered 3 exits: *Mat x2 / [*Min]) -9/Mines (discovered 2 exits: *Mat / *Exi) -9/Exiles (discovered 2 exits: [*Min x2]) -8/Mines (discovered 2 exits: *Mat x2) -8/Materials (discovered 4 exits: *Fac x3 / Gar) -8/Garrison -8/Materials (discovered 3 exits: *Fac x2 / Gar) -8/Garrison (discovered 3 exits: *Fac x3) -7/Factory (discovered 4 exits: *Fac x2 / *Low x2) -7/Lower Caves -7/Lower Caves (discovered 2 exits: *Fac / *Dat) -7/Data Miner -6/Proximity Caves -6/Factory (discovered 3 exits: Fac / Ext / Gar) -6/Garrison (discovered 3 exits: *Fac x3) -6/Factory -6/Extension (discovered 3 exits: *Fac x2 / *Cet) -6/Cetus (discovered 3 exits: *Fac x2 / [*Arc]) -5/Factory (discovered 2 exits: [*Fac] / Upp) -4/Factory -4/Waste -4/Factory History --------- Turn | Location | Event 13 | -11/Scrapyard | Discovered new exit (range 16) 187 | -11/Scrapyard | Entered Materials 331 | -10/Materials | Build established: Mutant 407 | -10/Materials | Discovered new exit (range 9) 541 | -10/Materials | Discovered new exit (range 4) 648 | -10/Materials | Discovered new exit (range 11) 1121 | -10/Materials | Build established: Hauler-Mutant 1295 | -10/Materials | Discovered new exit (range 16) 1594 | -10/Materials | Entered another Materials area 1594 | -9/Materials | Evolved 2 slots: Weapon x2 1958 | -9/Materials | Discovered new exit (range 9) 2248 | -9/Materials | Build established: Hauler-Gunner 2719 | -9/Materials | Discovered new exit (range 16) 3483 | -9/Materials | Discovered new exit (range 16) 3821 | -9/Materials | Entered Mines 4071 | -9/Mines | Discovered new exit (range 8) 4085 | -9/Mines | Deemed a non-threat by the Exiles lab entrance 4085 | -9/Mines | Discovered new exit (range 5) 4093 | -9/Mines | Entered Exiles 4128 | -9/Exiles | Discovered new exit (range 15) 4184 | -9/Exiles | Met 8R-AWN 4218 | -9/Exiles | Met EX-HEX 4276 | -9/Exiles | Met EX-BIN 4304 | -9/Exiles | Aligned with FarCom system 4306 | -9/Exiles | Given EX-Vault access code 4352 | -9/Exiles | Opened EX-Vault 4373 | -9/Exiles | Found Field Lobotomy Kit 4418 | -9/Exiles | Warned to stay clear of 0b10 Research branches 4472 | -9/Exiles | Met EX-DEC 4656 | -9/Exiles | Discovered new exit (range 10) 4676 | -9/Exiles | Left Exiles lab with Field Lobotomy Kit 4676 | -9/Exiles | Entered Mines 4985 | -8/Mines | Build established: Hauler-Skirmisher 5188 | -8/Mines | Discovered new exit (range 4) 5872 | -8/Mines | Discovered new exit (range 10) 7069 | -8/Mines | Entered Materials 7069 | -8/Materials | Evolved 2 slots: Utility x2 7378 | -8/Materials | Build established: Hauler-Tank 7865 | -8/Materials | Discovered new exit (range 16) 8627 | -8/Materials | Assimilated G-47 Trooper with FLK Orb 8630 | -8/Materials | Assimilated G-47 Trooper with FLK Orb 8633 | -8/Materials | Assimilated G-50 Soldier with FLK Orb 8691 | -8/Materials | Build established: Hauler-Skirmisher 9069 | -8/Materials | Discovered new exit (range 4) 9709 | -8/Materials | Discovered new exit (range 9) 10050 | -8/Materials | Garrison activated, responded to threat 10978 | -8/Materials | Identified exit to Garrison 11054 | -8/Materials | Garrison activated, responded to threat 11076 | -8/Materials | Entered Garrison 11076 | -8/Garrison | Accompanied by 2 allies 11210 | -8/Garrison | Triggered checkpoint 11304 | -8/Garrison | Garrison Relay disabled 11464 | -8/Garrison | Triggered checkpoint 11562 | -8/Garrison | Discovered new exit (range 15) 11737 | -8/Garrison | Installed Relay Interface Framework 11748 | -8/Garrison | Entered Materials 11748 | -8/Materials | Accompanied by 2 allies 12180 | -8/Materials | Discovered new exit (range 16) 12359 | -8/Materials | Identified exit to Garrison 12643 | -8/Materials | Garrison activated, responded to threat 12997 | -8/Materials | Discovered new exit (range 9) 13777 | -8/Materials | Entered Garrison 13777 | -8/Garrison | Accompanied by 5 allies 13824 | -8/Garrison | Triggered checkpoint 13824 | -8/Garrison | Triggered checkpoint 13842 | -8/Garrison | Triggered checkpoint 13863 | -8/Garrison | Destroyed 8 combat bots 13916 | -8/Garrison | Triggered checkpoint 14063 | -8/Garrison | Garrison Relay disabled 14187 | -8/Garrison | Discovered new exit (range 11) 14331 | -8/Garrison | Discovered new exit (range 15) 14486 | -8/Garrison | Triggered checkpoint 14573 | -8/Garrison | Discovered new exit (range 14) 14607 | -8/Garrison | Expanded RIF knowledge: Signal Jamming 14852 | -8/Garrison | Entered Factory 14852 | -7/Factory | Accompanied by 2 allies 14852 | -7/Factory | Evolved 2 slots: Propulsion x1, Utility x1 14853 | -7/Factory | Identified exit to Lower Caves 15159 | -7/Factory | Build established: Hauler-Tank 15341 | -7/Factory | Discovered new exit (range 15) 16291 | -7/Factory | Discovered exit to Lower Caves (range 9) 16446 | -7/Factory | Discovered new exit (range 4) 16703 | -7/Factory | Entered Lower Caves 16729 | -7/Lower Caves | Attracted the attention of an 0b10 outpost 16730 | -7/Lower Caves | Assimilated G-47 Trooper with FLK Orb 16734 | -7/Lower Caves | Assimilated Y-64 Sentinel with FLK Orb 17197 | -7/Lower Caves | Spotted B-75 Beast 17613 | -7/Lower Caves | Build established: Scavenger-Tank 18353 | -7/Lower Caves | Destroyed B-75 Beast 18817 | -7/Lower Caves | Discovered new exit (range 5) 18910 | -7/Lower Caves | Build established: Hauler-Tank 19471 | -7/Lower Caves | Entered another Lower Caves area 19485 | -7/Lower Caves | Discovered new exit (range 5) 20638 | -7/Lower Caves | Build established: Scavenger-Tank 21079 | -7/Lower Caves | Spotted B-75 Beast 21238 | -7/Lower Caves | Discovered new exit (range 8) 21327 | -7/Lower Caves | Build established: Hauler-Tank 21365 | -7/Lower Caves | Destroyed B-75 Beast 21382 | -7/Lower Caves | Lost 3 parts (1n2w) 21885 | -7/Lower Caves | Attracted the attention of an 0b10 base 21888 | -7/Lower Caves | Core integrity fell below 50% 21932 | -7/Lower Caves | Lost 4 parts (2n1u1w) 21958 | -7/Lower Caves | Learned 8 Factory zone layouts 22358 | -7/Lower Caves | Entered Data Miner 22358 | -7/Data Miner | Discovered new exit (range 6) 22394 | -7/Data Miner | Met Data Miner 22440 | -7/Data Miner | Learned location of Section 7 (-3) 22440 | -7/Data Miner | Acquired the access code to Warlord's prototype stash 22474 | -7/Data Miner | Received God Mode back door access code from Data Miner 22504 | -7/Data Miner | Build established: Derelict-Tank 22518 | -7/Data Miner | Entered Proximity Caves 22604 | -6/Proximity Caves | Escorted by Enhanced Grunt 22745 | -6/Proximity Caves | Spotted B-75 Beast 22759 | -6/Proximity Caves | Destroyed B-75 Beast 23224 | -6/Proximity Caves | Attracted the attention of an 0b10 checkpoint 24323 | -6/Proximity Caves | Attracted the attention of an 0b10 base 24391 | -6/Proximity Caves | Lost 5 parts (1n1u3w) 24567 | -6/Proximity Caves | Core integrity fell below 20% 24599 | -6/Proximity Caves | Discovered new exit (range 16) 24815 | -6/Proximity Caves | Entered Factory 24815 | -6/Factory | Evolved 2 slots: Propulsion x1, Utility x1 24816 | -6/Factory | Identified exit to Extension 24817 | -6/Factory | Identified exit to Factory 24826 | -6/Factory | Build established: Derelict-Mutant 25199 | -6/Factory | Build established: Hauler-Mutant 25595 | -6/Factory | Identified exit to Garrison 25616 | -6/Factory | Entered Garrison 25698 | -6/Garrison | Build established: Hauler-Tank 25718 | -6/Garrison | Triggered checkpoint 25761 | -6/Garrison | Triggered checkpoint 25768 | -6/Garrison | Triggered checkpoint 25827 | -6/Garrison | Destroyed 8 combat bots 25828 | -6/Garrison | Lost 5 parts (1u4w) 25937 | -6/Garrison | Discovered new exit (range 12) 26067 | -6/Garrison | Build established: Hauler-Mutant 26115 | -6/Garrison | Discovered new exit (range 14) 26352 | -6/Garrison | Discovered new exit (range 10) 26521 | -6/Garrison | Entered Factory 26859 | -6/Factory | Garrison activated, responded to threat 27020 | -6/Factory | Found Unknown Device 27020 | -6/Factory | Identified Launcher Loader 27171 | -6/Factory | Build established: Hauler-Tank 27586 | -6/Factory | Core integrity fell below 50% 27764 | -6/Factory | Discovered exit to Extension (range 11) 27864 | -6/Factory | Entered Extension 28328 | -6/Extension | Rescued A7 28585 | -6/Extension | Build established: Scavenger-Tank 28614 | -6/Extension | Disrupted transfer network 28741 | -6/Extension | Energy Cycler disabled 28741 | -6/Extension | Rescued a captive Derelict 28741 | -6/Extension | Rescued a captive Derelict 28742 | -6/Extension | Rescued a captive Derelict 29126 | -6/Extension | Spotted B-75 Beast 29153 | -6/Extension | Spotted B-75 Beast 29161 | -6/Extension | Discovered exit to Factory (range 14) 29169 | -6/Extension | Destroyed B-75 Beast 29450 | -6/Extension | Disrupted transfer network 29614 | -6/Extension | First assault squad dispatched 29629 | -6/Extension | Incoming assault squad redirected 29984 | -6/Extension | Incoming assault squad redirected 30144 | -6/Extension | Discovered exit to Factory (range 10) 30146 | -6/Extension | Discovered new exit (range 6) 30366 | -6/Extension | Core integrity fell below 20% 30530 | -6/Extension | Entered Cetus 30530 | -6/Cetus | Accompanied by 1 ally (A7) 30535 | -6/Cetus | Acquired a Cetus Manufacturing Module code from A7 30559 | -6/Cetus | Spotted Cetus Guard 30559 | -6/Cetus | Spotted Cetus Guard 30559 | -6/Cetus | Spotted Cetus Guard 30559 | -6/Cetus | Spotted Cetus Guard 30570 | -6/Cetus | Allies destroyed Cetus Guard 30583 | -6/Cetus | Allies destroyed Cetus Guard 30608 | -6/Cetus | Destroyed Cetus Guard 30650 | -6/Cetus | Destroyed Cetus Guard 30662 | -6/Cetus | Extracted ID and sensor layout for unrecognized location from A7's data core 30672 | -6/Cetus | Lost 4 parts (1p2n1u) 31071 | -6/Cetus | Discovered exit to Factory (range 15) 31236 | -6/Cetus | Discovered new exit (range 15) 31384 | -6/Cetus | Destroyed 8 combat bots 31430 | -6/Cetus | Started Cetus Manufacturing Module 31455 | -6/Cetus | Manufactured an Enhanced Grunt 31480 | -6/Cetus | Manufactured an Enhanced Grunt 31505 | -6/Cetus | Manufactured an Enhanced Grunt 31530 | -6/Cetus | Manufactured an Enhanced Grunt 31555 | -6/Cetus | Manufactured an Enhanced Grunt 31628 | -6/Cetus | Spotted Cetus Guard 31628 | -6/Cetus | Spotted Cetus Guard 31628 | -6/Cetus | Spotted Cetus Guard 31628 | -6/Cetus | Spotted Cetus Guard 31636 | -6/Cetus | Discovered exit to Factory (range 15) 31638 | -6/Cetus | Destroyed Cetus Guard 31649 | -6/Cetus | Allies destroyed Cetus Guard 31649 | -6/Cetus | Allies destroyed Cetus Guard 31652 | -6/Cetus | Allies destroyed Cetus Guard 31654 | -6/Cetus | Met Revision 17 31699 | -6/Cetus | Entered Factory 31699 | -5/Factory | Accompanied by 5 allies 31699 | -5/Factory | Evolved 2 slots: Utility x2 31700 | -5/Factory | Identified exit to Upper Caves 31824 | -5/Factory | Discovered new exit (range 15) 31999 | -5/Factory | First assault squad dispatched 32044 | -5/Factory | Entered another Factory area 32044 | -4/Factory | Accompanied by 5 allies 32044 | -4/Factory | Evolved 2 slots: Power x1, Weapon x1 32131 | -4/Factory | Sucked down chute 32131 | -4/Factory | Entered Waste 32146 | -4/Waste | EMP discharged 32200 | -4/Waste | 5 allies followed down the chute 32225 | -4/Waste | Spotted C-40 Crusher 32236 | -4/Waste | Spotted C-40 Crusher 32243 | -4/Waste | Allies destroyed C-40 Crusher 32246 | -4/Waste | EMP discharged 32246 | -4/Waste | System corruption reached 10% 32264 | -4/Waste | Found Damper Plating 32266 | -4/Waste | Spotted C-40 Crusher 32271 | -4/Waste | Crushed by Compactor (1 part destroyed) 32277 | -4/Waste | Crushed by Compactor (0 parts destroyed, 1 dropped) 32281 | -4/Waste | Spotted C-40 Crusher 32283 | -4/Waste | Crushed by Compactor (1 part destroyed) 32285 | -4/Waste | Allies destroyed C-40 Crusher 32289 | -4/Waste | Crushed by Compactor (1 part destroyed) 32289 | -4/Waste | Allies destroyed C-40 Crusher 32308 | -4/Waste | Spotted C-40 Crusher 32320 | -4/Waste | Lost 3 parts (3w) 32324 | -4/Waste | Allies destroyed C-40 Crusher 32346 | -4/Waste | EMP discharged 32379 | -4/Waste | Discovered new exit (range 10) 32399 | -4/Waste | Entered Factory 32399 | -4/Factory | Accompanied by 2 allies 32603 | -4/Factory | Found Prototype Device 32603 | -4/Factory | Identified Exp. Thermal Shield 32749 | -4/Factory | Garrison activated, responded to threat 32952 | -4/Factory | Core integrity fell below 50% 32965 | -4/Factory | Core integrity fell below 20% 33091 | -4/Factory | Destroyed by P-70 Sage with High-powered Shock Rifle Last Messages --------------- 33059_ Acquired 22 matter. 33059_ Slug penetrates Wall. 33060_ K-01 Serf collects debris. 33060_ System corrupted: Ripper targeting data glitched. 33063_ K-01 Serf collects debris. 33065_ Centrium Heavy Treads destroyed. 33065_ Penetrated by Slug. 33067_ K-01 Serf collects debris. 33068_ Y-64 Sentinel destroyed. 33070_ K-01 Serf collects debris. 33080_ Acquired Imp. Treads. 33082_ K-01 Serf collects debris. 33084_ N4/XUBZKOROSJYY4PFL7XHH 33084_ Acquired Imp. Treads. 33086_ Critical hit. 33086_ Broken Centrium Heavy Treads destroyed. 33087_ K-01 Serf collects debris. 33087_ Acquired 84 matter. 33090_ K-01 Serf collects debris. 33091_ Acquired KE Penetrator. Map ----- +----------------------------------------------------+ | ???????????????????????????????????????? | | ???????????????????????????????????????? | | ???????????????????????????????????????? | | ???????????????????????????????????????? | | ???????????????????????????????????????? | | ???????????????????????????????????????? | | ???????????????????????????????????????? | | ???????????????????????????????????????? | | ???????????????????????????????????????? | | ???????????????????????????????????????? | | ???????????????????????????????????????? | | ?????????????????????########??????????? | | ???????????????????? ??????????? | | ????????????????????# ??????????? | | ???????????????? ???# ??????????? | | ????????????????? ??# ???????????? | | ????????????????? ?# ???????????? | | ?????????????????? ## ???????????? | | ???????????????????+ =!???????????? | | ???????????????????# p =%#?#+###?????? | | ???????????????????# p * *# ?????? | | ??????????????????? %!% % # ??????? | | ????????????????????##=[%! # """" ?????? | | ?????????????????????# | # """" ?????? | | ??????????????#####??# ; """ #????? | | ??????????????# ?# @ # """ ?????? | | ??????????????# ! # % *;#########"#? | | ??????????????# ; ## | | ??????????????# # k "# | | ??????????????# ?# %%% #? | | ??????????????# ???## !!] ! "# | | ??????????????###?????# !!! #? | | ??????????????????????# !%= #? | | ????????????#########?# ! #? | | ????????????# ?# ! ! #? | | ????????????# # ^ ! "? | | ????????????# # ! ####### | | ????????????# + % ##????? | | ????????????# # | ####### | | ????????????# # # ! !? | | ????????????# ?# # # | | ????????????# ?# # " " # | | ????????????########??# # " " # | | ????????????????????### # " " # | | ????????????????????# # # " " # | | ????????????????????# " + " " # | | ????????????????????# # " " # | | ????????????????????# # " " # | | ????????????????????# ## " " # | | ???????????????????# " " " # | +----------------------------------------------------+ Best States ------------- Heat Dissipation 81 Energy Generation 38 Energy Capacity 460 Matter Stores 300 Matter Capacity 550 Sight Range 16 Terrain Scan Density 10 Armor Coverage 2850 Resistance: KI 20 Resistance: TH 30 Resistance: EM 90 Power Shielding 33 Evasion (%) 40 Recoil Reduction 4 Item Schematics ----------------- Combat Drone Bay | -7/Data Miner | Free Lgt. Regenerative Plating | -7/Data Miner | Free Exp. Flexi-carbon Leg | -7/Data Miner | Free Cmb. Gravmag System | -7/Data Miner | Free Exp. Terrain Scan Processor | -7/Data Miner | Free Exp. Targeting Computer | -7/Data Miner | Free Robot Schematics ------------------ S-27 Virus | -7/Data Miner | Free G-50 Soldier | -7/Data Miner | Free G-67 Veteran | -7/Data Miner | Free L-41 Fighter | -7/Data Miner | Free H-66 Slayer | -7/Data Miner | Free P-70 Sage | -7/Data Miner | Free I-36 Angel | -7/Data Miner | Free I-47 Archangel | -7/Data Miner | Free Fabricated ------------ Nothing Alien Tech Used ----------------- None Achievements -------------- Generalissimo Prison Break Project G-00 Revising The Future The Oracle Turtlemind Challenges ------------ None Game ------ Seed ParticleDynamicPropulsion Manual? 0 Play Time 03:54:42 Cumulative 121.8 hours Start 2021.01.26 @ 15:02:23 End 2021.01.26 @ 21:37:23 Sessions 7 Manual Loads 0 Difficulty Rogue Special Mode None Game No. 93 Rogue 93 Adventurer 0 Explorer 0 Win Type - Total 0 Types 0/0/0/0/0/0/0/0/0 Lore% 45 Gallery% 53 Achievement% 35 Wizard Run 0 Options --------- ASCII 0 Keyboard 0 Movement Numpad Keybinds 0 Fullscreen 1 Font 18/SmallcapsGlow Map View 76x50 Tactical HUD 1 Map Filters NONE Filters NONE Steam 1 RUN: 25f0cc2b-4237-4af0-9545-8c60a9f3f1f6